bitfinex/quotes_SOLUSD_20241220
["timestamp","ask_amount","ask_price","bid_price","bid_amount"]
[1734685237661,42.5165072,182.59,182.53,20.0]
[1734685237871,42.5165072,182.61,182.55,20.0]
[1734685238149,1.0270505,182.68,182.55,20.0]
[1734685238150,1.0270505,182.68,182.59,20.0]
[1734685238364,42.5165072,182.69,182.61,20.0]
[1734685238528,42.5165072,182.67,182.52,30.0]
[1734685238722,42.5165072,182.63,182.54,42.5165072]
[1734685238932,42.5165072,182.61,182.5,42.5165072]
[1734685239152,42.5165072,182.59,182.48,42.5165072]
[1734685239333,42.5165072,182.57,182.48,42.5165072]
[1734685239538,1.02698389,182.69,182.56,42.5165072]
[1734685239747,1.02698389,182.69,182.59,42.5165072]
[1734685239748,42.5165072,182.69,182.59,42.5165072]
[1734685240071,1.02620295,182.68,182.55,42.5165072]
[1734685240361,1.02649994,182.71,182.64,20.0]
[1734685240547,42.5165072,182.68,182.61,7.8056]
[1734685240725,42.5165072,182.7,182.61,20.0]
[1734685240921,42.5165072,182.68,182.58,50.5893722]
[1734685241131,42.5165072,182.68,182.6,42.5165072]
[1734685241333,42.5165072,182.65,182.56,42.5165072]
[1734685241534,42.5165072,182.58,182.52,21.896652]
[1734685241765,1.02690634,182.71,182.56,42.5165072]
[1734685241966,42.5165072,182.68,182.59,42.5165072]
[1734685242268,42.5165072,182.66,182.57,42.5165072]
[1734685242441,42.5165072,182.64,182.55,42.5165072]
[1734685242629,42.5165072,182.68,182.57,42.5165072]
[1734685242932,0.6873551,182.72,182.61,42.5165072]
[1734685243138,42.5165072,182.66,182.57,42.5165072]
[1734685243333,42.5165072,182.62,182.53,42.5165072]
[1734685243649,1.02670965,182.69,182.53,42.5165072]
[1734685243854,43.2038623,182.72,182.62,42.5165072]
[1734685244256,42.5165072,182.69,182.59,42.5165072]
[1734685244435,42.5165072,182.65,182.55,42.5165072]
[1734685244755,0.6873551,182.72,182.6,42.5165072]
[1734685244756,42.5165072,182.69,182.6,42.5165072]
[1734685244927,42.5165072,182.69,182.58,42.5165072]
[1734685245250,42.5165072,182.67,182.56,42.5165072]
[1734685245457,42.5165072,182.65,182.54,42.5165072]
[1734685245662,42.5165072,182.63,182.54,42.5165072]
[1734685245973,42.5165072,182.61,182.52,42.5165072]
[1734685246160,42.5165072,182.59,182.5,42.5165072]
[1734685246630,42.5165072,182.56,182.46,42.5165072]
[1734685246833,42.5165072,182.54,182.46,42.5165072]
[1734685247167,42.5165072,182.48,182.38,42.5165072]
[1734685247455,42.5165072,182.42,182.32,42.5165072]
[1734685247764,42.5165072,182.42,182.34,42.5165072]
[1734685247943,42.5165072,182.4,182.32,42.5165072]
[1734685248445,1.0277409,182.51,182.3,45.74000975]
[1734685248446,42.5165072,182.38,182.3,45.74000975]
[1734685248641,42.5165072,182.38,182.3,3.22350255]
[1734685248835,42.5165072,182.38,182.28,42.5165072]
[1734685248836,42.5165072,182.32,182.24,55.12314899]
[1734685249037,42.5165072,182.3,182.22,7.8615]
[1734685249355,42.5165072,182.28,182.2,42.5165072]
[1734685249539,42.5165072,182.32,182.24,42.5165072]
[1734685249853,42.5165072,182.34,182.26,42.5165072]
[1734685250268,42.5165072,182.36,182.26,42.5165072]
[1734685250555,42.5165072,182.36,182.19,17.04416072]
[1734685250556,42.5165072,182.38,182.3,42.5165072]
[1734685250858,42.5165072,182.4,182.3,42.5165072]
[1734685251032,42.5165072,182.38,182.3,42.5165072]
[1734685251237,42.5165072,182.38,182.28,42.5165072]
[1734685251432,42.5165072,182.36,182.28,42.5165072]
[1734685251643,42.5165072,182.4,182.3,42.5165072]
[1734685251843,42.5165072,182.4,182.32,42.5165072]
[1734685252042,42.5165072,182.44,182.36,42.5165072]
[1734685252241,42.5165072,182.38,182.31,21.918928]
[1734685252443,42.5165072,182.33,182.25,42.5165072]
[1734685252758,42.5165072,182.37,182.27,42.5165072]
[1734685252947,42.5165072,182.43,182.33,42.5165072]
[1734685253146,42.5165072,182.39,182.31,42.5165072]
[1734685253444,42.5165072,182.41,182.34,20.0]
[1734685253647,42.5165072,182.41,182.31,42.5165072]
[1734685253841,8.2212,182.46,182.27,42.5165072]
[1734685253842,42.5165072,182.37,182.27,42.5165072]
[1734685254241,42.5165072,182.37,182.29,42.5165072]
[1734685254558,42.5165072,182.33,182.25,42.5165072]
[1734685254759,42.5165072,182.31,182.23,42.5165072]
[1734685254950,42.5165072,182.31,182.21,42.5165072]
[1734685255156,42.5165072,182.27,182.19,42.5165072]
[1734685255357,42.5165072,182.29,182.19,42.5165072]
[1734685255543,42.5165072,182.34,182.15,3.2943137]
[1734685255544,42.5165072,182.25,182.15,42.5165072]
[1734685255945,42.5165072,182.19,182.11,42.5165072]
[1734685256166,42.5165072,182.15,182.06,42.5165072]
[1734685256340,50.7527072,182.13,182.04,42.5165072]
[1734685256660,42.5165072,182.11,182.02,42.5165072]
[1734685256959,42.5165072,182.13,182.04,42.5165072]
[1734685257368,42.5165072,182.11,181.97,3.29004226]
[1734685257666,42.5165072,182.09,182.0,42.5165072]
[1734685258042,42.5165072,182.11,182.02,42.5165072]
[1734685258257,42.5165072,182.13,182.04,42.5165072]
[1734685258639,42.5165072,182.16,182.06,42.5165072]
[1734685258835,42.5165072,182.12,182.02,42.5165072]
[1734685259055,42.5165072,182.1,182.0,42.5165072]
[1734685259449,42.5165072,182.12,182.02,42.5165072]
[1734685259752,42.5165072,182.12,181.98,42.5165072]
[1734685259753,42.5165072,182.12,182.04,42.5165072]
[1734685260269,3.37505746,182.22,182.04,42.5165072]
[1734685260270,42.5165072,182.18,182.11,20.0]
[1734685260449,42.5165072,182.16,182.06,42.5165072]
[1734685260649,42.5165072,182.12,182.02,42.5165072]
[1734685260857,42.5165072,182.04,181.95,42.5165072]
[1734685261052,42.5165072,182.0,181.86,9.4723]
[1734685261264,42.5165072,181.96,181.87,45.83452794]
[1734685261567,42.5165072,181.92,181.83,42.5165072]
[1734685261780,20.0,181.87,181.79,42.5165072]
[1734685261956,42.5165072,181.84,181.75,42.5165072]
[1734685262148,42.5165072,181.8,181.72,4.3]
[1734685262348,42.5165072,181.78,181.69,42.5165072]
[1734685262567,42.5165072,181.74,181.65,42.5165072]
[1734685263168,42.5165072,181.68,181.61,4.3]
[1734685263360,20.0,181.77,181.54,8.1724]
[1734685263361,42.5165072,181.66,181.56,42.5165072]
[1734685263866,42.5165072,181.64,181.54,42.5165072]
[1734685264174,43.54860936,181.68,181.58,42.5165072]
[1734685264368,1.03210216,181.68,181.6,42.5165072]
[1734685264571,42.5165072,181.74,181.64,42.5165072]
[1734685264767,1.03193383,181.73,181.68,42.5165072]
[1734685264950,42.5165072,181.8,181.71,42.5165072]
[1734685265150,1.03155826,181.88,181.65,8.1724]
[1734685265373,42.5165072,181.89,181.66,7.62580909]
[1734685265552,42.5165072,181.89,181.79,42.5165072]
[1734685265751,42.5165072,181.84,181.74,42.5165072]
[1734685266067,3.38265551,181.87,181.7,42.5165072]
[1734685266068,42.5165072,181.8,181.7,42.5165072]
[1734685266392,42.5165072,181.72,181.64,42.5165072]
[1734685266685,42.5165072,181.7,181.6,42.5165072]
[1734685267052,42.5165072,181.72,181.62,42.5165072]
[1734685267253,42.5165072,181.72,181.64,42.5165072]
[1734685267502,42.5165072,181.76,181.66,42.5165072]
[1734685267700,42.5165072,181.78,181.68,42.5165072]
[1734685267855,42.5165072,181.8,181.72,42.5165072]
[1734685268056,45.85603939,181.86,181.76,42.5165072]
[1734685268256,3.24936383,181.91,181.71,72.5165072]
[1734685268466,42.5165072,181.95,181.86,42.5165072]
[1734685268763,42.5165072,181.92,181.83,42.5165072]
[1734685269062,42.5165072,181.99,181.9,42.5165072]
[1734685269261,45.80154203,182.03,181.95,62.5165072]
[1734685269479,21.98739,182.02,181.97,42.5165072]
[1734685269677,42.5165072,182.03,181.95,42.5165072]
[1734685269873,42.5165072,182.05,181.98,20.0]
[1734685270075,42.5165072,182.07,182.02,20.0]
[1734685270256,42.5165072,182.09,182.02,20.0]
[1734685270659,42.5165072,182.03,181.93,42.5165072]
[1734685271061,42.5165072,181.95,181.85,42.5165072]
[1734685271385,1.03059738,181.94,181.71,42.5165072]
[1734685271577,42.5165072,181.87,181.79,42.5165072]
[1734685271783,1.03088681,181.97,181.82,42.5165072]
[1734685271784,42.5165072,181.91,181.82,42.5165072]
[1734685271963,42.5165072,181.93,181.84,42.5165072]
[1734685272164,42.5165072,181.89,181.8,42.5165072]
[1734685272879,42.5165072,181.93,181.84,42.5165072]
[1734685273057,42.5165072,181.88,181.79,42.5165072]
[1734685273382,42.5165072,181.92,181.81,42.5165072]
[1734685273598,42.5165072,181.92,181.83,42.5165072]
[1734685273885,42.5165072,181.89,181.8,42.5165072]
[1734685274086,42.5165072,181.94,181.85,42.5165072]
[1734685274397,42.5165072,181.94,181.83,42.5165072]
[1734685274562,42.5165072,181.92,181.83,42.5165072]
[1734685274757,42.5165072,181.94,181.85,42.5165072]
[1734685274957,42.5165072,181.92,181.83,42.5165072]
[1734685275161,42.5165072,181.88,181.79,42.5165072]
[1734685275394,42.5165072,181.84,181.73,42.5165072]
[1734685275689,42.5165072,181.78,181.69,42.5165072]
[1734685276288,42.5165072,181.78,181.68,42.5165072]
[1734685276467,42.5165072,181.76,181.66,42.5165072]
[1734685276665,42.5165072,181.74,181.64,42.5165072]
[1734685276878,42.5165072,181.72,181.64,42.5165072]
[1734685277079,3.30006528,181.85,181.55,39.2836]
[1734685277080,3.30006528,181.85,181.7,42.5165072]
[1734685277386,42.5165072,181.94,181.83,42.5165072]
[1734685277563,42.5165072,181.92,181.84,42.5165072]
[1734685277768,13.7358,182.01,181.76,4.3]
[1734685277769,1.03078065,182.1,181.81,23.776884]
[1734685277980,1.03029199,182.05,181.93,42.5165072]
[1734685278163,42.5165072,181.98,181.89,42.5165072]
[1734685278361,42.5165072,181.96,181.87,42.5165072]
[1734685278686,42.5165072,181.88,181.79,42.5165072]
[1734685278877,42.5165072,181.9,181.79,42.5165072]
[1734685279371,42.5165072,181.9,181.81,42.5165072]
[1734685279688,42.5165072,181.88,181.79,42.5165072]
[1734685279888,10.52646496,181.83,181.71,11.2566218]
[1734685280076,42.5165072,181.84,181.76,42.5165072]
[1734685280279,42.5165072,181.86,181.76,42.5165072]
[1734685280873,42.5165072,181.82,181.72,42.5165072]
[1734685281076,42.5165072,181.8,181.7,42.5165072]
[1734685281390,42.5165072,181.8,181.53,37.8422]
[1734685281391,42.5165072,181.71,181.53,37.8422]
[1734685281569,42.5165072,181.68,181.6,42.5165072]
[1734685281769,1.0320375,181.77,181.64,42.5165072]
[1734685281972,1.03169755,181.86,181.76,42.5165072]
[1734685282173,42.5165072,181.92,181.82,42.5165072]
[1734685282382,42.5165072,181.87,181.78,42.5165072]
[1734685282573,42.5165072,181.87,181.71,42.5165072]
[1734685282574,1.03127897,181.86,181.76,42.5165072]
[1734685282774,42.5165072,181.87,181.78,42.5165072]
[1734685282997,42.5165072,181.81,181.71,42.5165072]
[1734685283169,42.5165072,181.79,181.71,42.5165072]
[1734685283370,20.0,181.74,181.67,42.5165072]
[1734685283570,42.5165072,181.77,181.69,42.5165072]
[1734685283872,21.03150913,181.76,181.69,42.5165072]
[1734685284072,6.8759,181.8,181.64,34.3]
[1734685284272,20.0,181.77,181.71,42.5165072]
[1734685284674,6.8742,181.84,181.63,30.0]
[1734685284885,20.0,181.8,181.73,42.5165072]
[1734685285090,21.03157545,181.8,181.71,42.5165072]
[1734685285387,42.5165072,181.79,181.7,42.5165072]
[1734685285590,1.03148094,181.8,181.56,4.3]
[1734685285591,42.5165072,181.75,181.56,4.3]
[1734685285775,42.5165072,181.77,181.68,42.5165072]
[1734685286171,42.5165072,181.79,181.7,42.5165072]
[1734685286512,1.03146526,181.87,181.78,42.5165072]
[1734685286802,1.03096483,181.88,181.78,42.5165072]
[1734685286982,42.5165072,181.85,181.76,42.5165072]
[1734685287169,42.5165072,181.78,181.67,42.5165072]
[1734685287378,42.5165072,181.74,181.65,42.5165072]
[1734685288097,42.5165072,181.7,181.61,42.5165072]
[1734685288592,42.5165072,181.72,181.63,42.5165072]
[1734685288890,20.0,181.67,181.59,42.5165072]
[1734685289088,42.5165072,181.68,181.59,42.5165072]
[1734685289396,20.0,181.69,181.63,42.5165072]
[1734685289594,20.0,181.69,181.61,42.5165072]
[1734685290205,21.03205464,181.69,181.61,42.5165072]
[1734685290405,42.5165072,181.68,181.59,42.5165072]
[1734685290582,20.0,181.69,181.59,42.5165072]
[1734685290768,49.3952072,181.72,181.58,4.3]
[1734685290972,1.03203694,181.76,181.54,3.26142449]
[1734685290973,20.0,181.71,181.65,42.5165072]
[1734685291203,20.0,181.71,181.63,42.5165072]
[1734685291610,43.54847857,181.7,181.61,42.5165072]
[1734685291799,20.0,181.71,181.63,42.5165072]
[1734685291996,21.03191451,181.71,181.63,42.5165072]
[1734685292196,20.0,181.71,181.63,42.5165072]
[1734685292399,20.0,181.67,181.61,42.5165072]
[1734685292691,20.0,181.67,181.59,42.5165072]
[1734685292992,21.03221201,181.67,181.59,42.5165072]
[1734685293195,20.0,181.67,181.57,42.5165072]
[1734685293386,20.0,181.67,181.59,42.5165072]
[1734685293706,42.5165072,181.64,181.55,42.5165072]
[1734685294085,42.5165072,181.66,181.57,42.5165072]
[1734685294274,20.0,181.63,181.57,42.5165072]
[1734685294473,42.5165072,181.66,181.57,42.5165072]
[1734685294711,50.42798817,181.7,181.61,42.5165072]
[1734685295009,42.5165072,181.66,181.57,42.5165072]
[1734685295206,42.5165072,181.7,181.55,4.3]
[1734685295411,42.5165072,181.72,181.63,42.5165072]
[1734685295614,42.5165072,181.65,181.56,42.5165072]
[1734685295788,42.5165072,181.69,181.6,42.5165072]
[1734685295980,42.5165072,181.67,181.58,42.5165072]
[1734685296316,42.5165072,181.63,181.54,42.5165072]
[1734685296685,42.5165072,181.59,181.5,50.4211072]
[1734685296983,42.5165072,181.61,181.52,42.5165072]
[1734685297709,42.5165072,181.57,181.48,42.5165072]
[1734685297908,42.5165072,181.55,181.46,42.5165072]
[1734685298684,42.5165072,181.57,181.48,42.5165072]
[1734685298885,42.5165072,181.55,181.46,42.5165072]
[1734685299603,42.5165072,181.57,181.49,42.5165072]
[1734685299791,42.5165072,181.59,181.51,42.5165072]
[1734685299991,42.5165072,181.57,181.49,42.5165072]
[1734685300220,42.5165072,181.57,181.47,42.5165072]
[1734685300584,42.5165072,181.59,181.51,42.5165072]
[1734685300786,42.5165072,181.63,181.53,42.5165072]
[1734685301019,42.5165072,181.63,181.55,42.5165072]
[1734685301223,42.5165072,181.61,181.53,42.5165072]
[1734685301888,42.5165072,181.59,181.49,42.5165072]
[1734685302093,42.5165072,181.59,181.5,23.776884]
[1734685302989,42.5165072,181.61,181.52,23.776884]
[1734685303188,42.5165072,181.59,181.52,23.776884]
[1734685303393,42.5165072,181.57,181.47,42.5165072]
[1734685303616,42.5165072,181.62,181.47,42.5165072]
[1734685303617,42.5165072,181.55,181.47,42.5165072]
[1734685303921,42.5165072,181.55,181.45,42.5165072]
[1734685304096,42.5165072,181.53,181.45,42.5165072]
[1734685305115,42.5165072,181.57,181.48,23.776884]
[1734685305411,42.5165072,181.61,181.53,42.5165072]
[1734685305625,42.5165072,181.65,181.57,42.5165072]
[1734685305824,42.5165072,181.65,181.47,30.0]
[1734685305825,42.5165072,181.65,181.55,42.5165072]
[1734685306105,42.5165072,181.65,181.56,23.776884]
[1734685306531,42.5165072,181.67,181.58,23.776884]
[1734685306732,42.5165072,181.69,181.61,42.5165072]
[1734685307027,1.03203596,181.77,181.61,42.5165072]
[1734685307028,42.5165072,181.71,181.62,23.776884]
[1734685307227,42.5165072,181.73,181.62,66.2933912]
[1734685307617,42.5165072,181.78,181.69,42.5165072]
[1734685307926,42.5165072,181.76,181.68,23.776884]
[1734685308118,42.5165072,181.74,181.65,42.5165072]
[1734685308323,42.5165072,181.7,181.61,42.5165072]
[1734685308510,42.5165072,181.62,181.52,23.776884]
[1734685308709,42.5165072,181.62,181.54,42.5165072]
[1734685309106,42.5165072,181.6,181.51,7.3555]
[1734685309732,42.5165072,181.56,181.48,42.5165072]
[1734685310135,42.5165072,181.54,181.46,42.5165072]
[1734685310303,42.5165072,181.54,181.41,25.7623]
[1734685310304,42.5165072,181.52,181.44,42.5165072]
[1734685310508,42.5165072,181.52,181.41,11.982]
[1734685310509,42.5165072,181.5,181.41,7.4049]
[1734685310806,42.5165072,181.48,181.41,7.4049]
[1734685311020,42.5165072,181.48,181.32,28.68157462]
[1734685311021,42.5165072,181.42,181.3,42.5165072]
[1734685311213,42.5165072,181.39,181.3,42.5165072]
[1734685311415,42.5165072,181.35,181.26,42.5165072]
[1734685311606,42.5165072,181.31,181.24,49.9802072]
[1734685311810,27.32525335,181.48,181.12,10.67546956]
[1734685311811,1.03416362,181.3,181.14,7.8113]
[1734685312006,42.5165072,181.23,181.14,7.8113]
[1734685312209,42.5165072,181.17,181.12,8.4285575]
[1734685312446,42.5165072,181.15,181.04,8.4285575]
[1734685312635,42.5165072,181.15,181.05,42.5165072]
[1734685312814,20.0,181.12,181.05,42.5165072]
[1734685313009,42.5165072,181.15,181.05,42.5165072]
[1734685313209,42.5165072,181.19,181.11,42.5165072]
[1734685313434,42.5165072,181.17,181.09,42.5165072]
[1734685313739,42.5165072,181.17,181.07,42.5165072]
[1734685314030,42.5165072,181.17,181.01,4.5542]
[1734685314031,42.5165072,181.13,181.05,42.5165072]
[1734685314408,42.5165072,181.15,181.05,42.5165072]
[1734685314809,42.5165072,181.17,181.07,42.5165072]
[1734685315019,42.5165072,181.21,181.11,42.5165072]
[1734685315307,42.5165072,181.13,181.03,42.5165072]
[1734685315529,42.5165072,181.13,181.05,42.5165072]
[1734685315736,42.5165072,181.15,181.05,42.5165072]
[1734685316033,42.5165072,181.19,181.03,30.0]
[1734685316220,42.5165072,181.17,181.03,13.8098]
[1734685316414,42.5165072,181.15,181.07,42.5165072]
[1734685316824,1.03520326,181.14,181.05,42.5165072]
[1734685317009,42.5165072,181.13,181.03,42.5165072]
[1734685317433,42.5165072,181.13,181.05,42.5165072]
[1734685317630,1.035297,181.12,181.03,42.5165072]
[1734685317931,42.5165072,181.11,181.01,42.5165072]
[1734685318135,1.03552933,181.1,181.01,42.5165072]
[1734685318312,42.5165072,181.11,181.01,42.5165072]
[1734685318518,42.5165072,181.09,180.99,42.5165072]
[1734685318722,42.5165072,181.11,181.01,42.5165072]
[1734685319009,42.5165072,181.09,180.99,42.5165072]
[1734685319425,20.0,181.13,181.03,42.5165072]
[1734685319621,22.082302,181.2,180.95,13.8159]
[1734685319622,42.5165072,181.11,180.95,13.8159]
[1734685319827,42.5165072,181.09,181.0,42.5165072]
[1734685320116,42.5165072,181.11,181.0,42.5165072]
[1734685320422,42.5165072,181.13,181.02,62.5165072]
[1734685320628,42.5165072,181.13,181.04,62.5165072]
[1734685320816,42.5165072,181.26,181.09,20.0]
[1734685320817,42.5165072,181.15,181.09,20.0]
[1734685321128,42.5165072,181.17,181.06,42.5165072]
[1734685321334,42.5165072,181.11,181.05,23.776884]
[1734685321521,1.03520137,181.1,181.0,42.5165072]
[1734685321711,42.5165072,181.1,181.02,42.5165072]
[1734685321914,42.5165072,181.12,181.02,42.5165072]
[1734685322111,42.5165072,181.16,181.08,42.5165072]
[1734685322342,42.5165072,181.2,181.1,42.5165072]
[1734685322519,42.5165072,181.18,181.08,42.5165072]
[1734685322707,42.5165072,181.2,181.12,42.5165072]
[1734685322909,42.5165072,181.24,181.15,23.776884]
[1734685323136,42.5165072,181.2,181.1,62.5165072]
[1734685323397,42.5165072,181.2,181.11,23.776884]
[1734685323530,42.5165072,181.16,181.11,23.776884]
[1734685323733,42.5165072,181.14,181.04,42.5165072]
[1734685323919,42.5165072,181.1,181.0,42.5165072]
[1734685324253,1.03529144,181.09,181.0,42.5165072]
[1734685324415,42.5165072,181.12,181.02,42.5165072]
[1734685324614,42.5165072,181.12,181.04,42.5165072]
[1734685324944,42.5165072,181.1,181.02,42.5165072]
[1734685325136,23.89855472,181.25,181.04,42.5165072]
[1734685325137,42.5165072,181.14,181.04,42.5165072]
[1734685325335,42.5165072,181.14,181.07,20.0]
[1734685325520,42.5165072,181.16,181.09,20.0]
[1734685325913,42.5165072,181.14,181.06,42.5165072]
[1734685326320,42.5165072,181.14,181.08,23.776884]
[1734685326522,27.61862201,181.28,181.02,56.3266072]
[1734685326523,42.5165072,181.12,181.02,56.3266072]
[1734685326835,42.5165072,181.14,181.04,42.5165072]
[1734685327043,42.5165072,181.14,181.06,42.5165072]
[1734685327250,42.5165072,181.16,181.06,42.5165072]
[1734685327559,42.5165072,181.2,181.1,42.5165072]
[1734685327733,1.03487635,181.25,181.08,42.5165072]
[1734685327734,42.5165072,181.18,181.08,42.5165072]
[1734685327934,1.03477812,181.25,181.08,42.5165072]
[1734685328147,42.5165072,181.12,181.02,56.3267072]
[1734685328347,42.5165072,181.12,180.98,7.9701]
[1734685328348,42.5165072,181.08,181.0,42.5165072]
[1734685328651,42.5165072,181.04,180.96,42.5165072]
[1734685329326,42.5165072,181.04,180.92,18.4706]
[1734685329532,42.5165072,181.06,180.97,42.5165072]
[1734685329731,42.5165072,181.08,180.99,42.5165072]
[1734685330241,42.5165072,181.1,181.01,42.5165072]
[1734685330442,42.5165072,181.12,181.05,42.5165072]
[1734685330652,42.5165072,181.12,181.06,23.776884]
[1734685330848,42.5165072,181.12,181.03,42.5165072]
[1734685331029,42.5165072,181.12,181.06,20.0]
[1734685331236,1.03517699,181.16,181.1,42.5165072]
[1734685331446,42.5165072,181.19,181.1,42.5165072]
[1734685331649,42.5165072,181.17,181.11,20.0]
[1734685331831,42.5165072,181.15,181.06,42.5165072]
[1734685332542,42.5165072,181.19,181.11,20.0]
[1734685332746,42.5165072,181.17,181.08,42.5165072]
[1734685333351,42.5165072,181.19,181.13,20.0]
[1734685333555,42.5165072,181.21,181.15,20.0]
[1734685333728,42.5165072,181.17,181.07,49.9492072]
[1734685333936,42.5165072,181.17,181.09,42.5165072]
[1734685334227,42.5165072,181.19,181.09,42.5165072]
[1734685334433,42.5165072,181.19,181.11,42.5165072]
[1734685334654,42.5165072,181.21,181.11,42.5165072]
[1734685334845,42.5165072,181.25,181.15,42.5165072]
[1734685335050,42.5165072,181.25,181.16,23.776884]
[1734685335262,42.5165072,181.21,181.12,23.776884]
[1734685335555,42.5165072,181.17,181.09,42.5165072]
[1734685335769,42.5165072,181.15,181.07,49.9492072]
[1734685335933,42.5165072,181.13,181.03,42.5165072]
[1734685336139,42.5165072,181.09,181.01,42.5165072]
[1734685336351,42.5165072,181.11,181.01,42.5165072]
[1734685336557,42.5165072,181.15,181.03,34.3]
[1734685336737,42.5165072,181.15,181.06,42.5165072]
[1734685336933,42.5165072,181.17,181.08,42.5165072]
[1734685337360,42.5165072,181.21,181.12,42.5165072]
[1734685337673,42.5165072,181.25,181.17,20.0]
[1734685338062,42.5165072,181.21,181.15,20.0]
[1734685338450,42.5165072,181.23,181.14,42.5165072]
[1734685338666,42.5165072,181.25,181.16,42.5165072]
[1734685338968,42.5165072,181.25,181.17,20.0]
[1734685339173,42.5165072,181.25,181.14,66.2933912]
[1734685339174,42.5165072,181.21,181.14,42.5165072]
[1734685339760,42.5165072,181.23,181.14,42.5165072]
[1734685339975,42.5165072,181.25,181.15,23.776884]
[1734685340153,42.5165072,181.27,181.2,23.776884]
[1734685340354,42.5165072,181.27,181.19,42.5165072]
[1734685340964,42.5165072,181.27,181.2,20.0]
[1734685341169,42.5165072,181.27,181.17,42.5165072]
[1734685341360,42.5165072,181.25,181.18,23.776884]
[1734685341563,42.5165072,181.25,181.18,20.0]
[1734685341872,42.5165072,181.23,181.15,7.8446]
[1734685342071,42.5165072,181.19,181.11,42.5165072]
[1734685342281,42.5165072,181.13,181.05,42.5165072]
[1734685342486,42.5165072,181.09,180.97,7.8446]
[1734685342688,42.5165072,181.09,181.0,42.5165072]
[1734685342990,1.03556057,181.08,181.0,42.5165072]
[1734685343371,42.5165072,181.11,181.02,42.5165072]
[1734685343687,42.5165072,181.09,181.0,42.5165072]
[1734685344590,42.5165072,181.13,181.04,42.5165072]
[1734685344763,13.7959,181.22,181.06,42.5165072]
[1734685344764,42.5165072,181.15,181.06,42.5165072]
[1734685344965,42.5165072,181.15,181.07,23.776884]
[1734685345284,42.5165072,181.19,181.11,23.776884]
[1734685345604,42.5165072,181.23,181.15,23.776884]
[1734685345766,42.5165072,181.25,181.16,42.5165072]
[1734685345969,42.5165072,181.27,181.19,23.776884]
[1734685346163,42.5165072,181.29,181.21,23.776884]
[1734685346358,42.5165072,181.25,181.16,42.5165072]
[1734685346577,42.5165072,181.25,181.17,23.776884]
[1734685346789,42.5165072,181.27,181.18,42.5165072]
[1734685346976,42.5165072,181.27,181.19,23.776884]
[1734685347185,1.03448333,181.26,181.18,42.5165072]
[1734685347498,42.5165072,181.21,181.12,42.5165072]
[1734685347700,42.5165072,181.17,181.08,42.5165072]
[1734685348473,6.8965,181.25,181.06,13.8069]
[1734685348474,42.5165072,181.15,181.06,42.5165072]
[1734685348688,42.5165072,181.17,181.08,42.5165072]
[1734685348899,42.5165072,181.19,181.12,42.5165072]
[1734685349085,1.03508599,181.24,181.14,42.5165072]
[1734685349086,42.5165072,181.23,181.14,42.5165072]
[1734685349291,45.46436443,181.38,181.16,42.5165072]
[1734685349292,42.5165072,181.25,181.16,42.5165072]
[1734685349675,42.5165072,181.23,181.15,23.776884]
[1734685350790,42.5165072,181.23,181.14,42.5165072]
[1734685351108,1.03472955,181.22,181.14,42.5165072]
[1734685351313,42.5165072,181.19,181.1,42.5165072]
[1734685351612,42.5165072,181.15,181.06,42.5165072]
[1734685352116,42.5165072,181.17,181.08,42.5165072]
[1734685352410,42.5165072,181.21,181.1,42.5165072]
[1734685352603,1.03478498,181.2,181.1,42.5165072]
[1734685352794,42.5165072,181.21,181.1,42.5165072]
[1734685353111,42.5165072,181.21,181.12,42.5165072]
[1734685353284,42.5165072,181.18,181.1,23.776884]
[1734685353985,42.5165072,181.2,181.11,42.5165072]
[1734685354214,42.5165072,181.2,181.12,23.776884]
[1734685354421,42.5165072,181.22,181.13,42.5165072]
[1734685354587,42.5165072,181.22,181.14,23.776884]
[1734685355300,42.5165072,181.24,181.15,42.5165072]
[1734685355510,42.5165072,181.24,181.09,31.9101]
[1734685355511,3.84607463,181.21,181.09,4.3]
[1734685355799,3.84607463,181.21,181.13,23.776884]
[1734685356024,3.84607463,181.21,181.12,42.5165072]
[1734685356300,42.5165072,181.18,181.08,42.5165072]
[1734685356603,42.5165072,181.1,181.02,42.5165072]
[1734685356774,42.5165072,181.08,180.99,6.5784]
[1734685356977,42.5165072,181.08,180.98,42.5165072]
[1734685357182,42.5165072,181.06,180.98,42.5165072]
[1734685357785,42.5165072,181.04,180.94,42.5165072]
[1734685358306,42.5165072,181.01,180.92,42.5165072]
[1734685358883,3.84607463,181.0,180.92,42.5165072]
[1734685359107,3.84607463,181.0,180.94,42.5165072]
[1734685359322,20.0,180.92,180.76,6.6106]
[1734685359611,42.5165072,180.82,180.76,6.6106]
[1734685360208,42.5165072,180.84,180.77,42.5165072]
[1734685360398,42.5165072,180.88,180.79,42.5165072]
[1734685360717,42.5165072,180.88,180.81,42.5165072]
[1734685361017,3.30175727,180.95,180.83,42.5165072]
[1734685361018,42.5165072,180.92,180.83,42.5165072]
[1734685361187,42.5165072,180.94,180.87,42.5165072]